bitfinex/quotes_ETHUSD_20240825
["timestamp","ask_amount","ask_price","bid_price","bid_amount"]
[1724592371124,2.3892,2765.1,2764.3,3.61751]
[1724592371623,7.23375,2764.9,2764.3,3.61751]
[1724592372127,7.23375,2764.9,2764.1,3.61778]
[1724592372128,3.6169,2764.8,2764.1,3.61778]
[1724592372335,3.61703,2764.7,2764.1,3.61778]
[1724592372681,3.61703,2764.7,2764.1,7.2355]
[1724592372887,2.3892,2764.8,2764.2,3.61766]
[1724592373591,2.3892,2764.8,2764.3,3.61752]
[1724592374487,2.3892,2764.8,2764.3,3.61744]
[1724592375135,2.3892,2764.8,2764.3,7.2349]
[1724592375690,2.3892,2764.8,2764.5,3.61728]
[1724592376425,7.46,2765.0,2764.7,3.61702]
[1724592376725,15.82628,2765.3,2764.9,3.61676]
[1724592376726,14.5992,2765.3,2764.9,3.61676]
[1724592376914,14.5992,2765.3,2764.7,3.61702]
[1724592377225,14.5992,2765.3,2764.7,3.61694]
[1724592378237,14.5992,2765.3,2764.8,3.61687]
[1724592378453,12.21,2765.3,2764.8,3.61687]
[1724592379811,7.46,2765.4,2765.0,3.61659]
[1724592381394,7.46,2765.4,2764.8,3.6168]
[1724592382295,7.46,2765.4,2764.9,3.61675]
[1724592383229,7.46,2765.4,2764.8,3.6168]
[1724592383230,3.61627,2765.3,2764.5,7.18006591]
[1724592383436,3.61627,2765.3,2764.7,3.61692]
[1724592383589,5.324415,2765.3,2764.7,3.61692]
[1724592383792,5.324415,2765.3,2764.5,3.61724]
[1724592383793,3.61651,2765.1,2764.5,3.61724]
[1724592384231,3.61651,2765.1,2764.5,3.6172]
[1724592384733,2.397,2765.2,2764.6,3.61707]
[1724592385115,2.397,2765.2,2764.7,3.61701]
[1724592385630,2.397,2765.2,2764.8,3.61677]
[1724592385993,2.397,2765.2,2764.9,3.61674]
[1724592386438,2.397,2765.2,2765.0,3.61663]
[1724592387298,9.857,2765.4,2765.0,3.61663]
[1724592387533,9.857,2765.4,2765.0,3.61654]
[1724592389103,9.857,2765.4,2765.1,3.61649]
[1724592389501,9.857,2765.4,2765.0,7.2331]
[1724592389943,9.857,2765.4,2765.0,3.61654]
[1724592390671,11.31782372,2765.4,2764.8,3.61681]
[1724592390877,2.397,2765.3,2764.4,3.61739]
[1724592391157,3.61651,2765.1,2764.4,4.18315459]
[1724592391305,3.53237724,2765.3,2764.7,3.61694]
[1724592391506,3.53237724,2765.3,2764.8,3.61679]
[1724592391705,2.397,2765.3,2764.8,3.61679]
[1724592391909,3.53237724,2765.3,2764.6,3.61706]
[1724592392218,4.75179724,2765.2,2764.6,3.61706]
[1724592392813,3.61642,2765.2,2764.6,3.61706]
[1724592393150,4.75179724,2765.2,2764.6,3.61706]
[1724592393637,3.53237724,2765.3,2764.8,3.6168]
[1724592393846,3.53237724,2765.3,2764.9,3.61676]
[1724592394529,3.53237724,2765.3,2764.8,3.6168]
[1724592394880,1.13537724,2765.5,2765.3,3.61624]
[1724592395019,1.13537724,2765.5,2765.1,7.2328]
[1724592395400,1.13537724,2765.5,2765.1,3.61639]
[1724592395603,1.13537724,2765.5,2764.9,4.76441]
[1724592395604,1.13537724,2765.5,2764.9,3.61666]
[1724592395808,3.53237724,2765.4,2764.9,3.61666]
[1724592396103,2.397,2765.4,2764.9,3.61666]
[1724592396286,3.53237724,2765.4,2764.9,3.61666]
[1724592396447,1.13537724,2765.3,2764.9,3.61666]
[1724592396647,1.13537724,2765.2,2764.9,3.61666]
[1724592397643,1.13537724,2765.1,2764.7,3.61693]
[1724592397880,1.13537724,2765.1,2764.8,3.61689]
[1724592398644,1.13537724,2765.1,2764.7,3.61693]
[1724592398968,3.53237724,2765.0,2764.7,3.61693]
[1724592399169,1.13537724,2764.9,2764.7,3.61693]
[1724592399483,3.91520085,2765.0,2764.7,4.340339]
[1724592399484,1.13537724,2765.0,2764.7,4.340339]
[1724592399668,1.13537724,2765.1,2764.7,5.97722]
[1724592400187,1.13537724,2765.1,2764.9,3.61667]
[1724592400758,1.13537724,2765.1,2765.0,3.61663]
[1724592401783,1.13537724,2765.2,2765.0,3.61663]
[1724592402142,1.51820085,2765.3,2765.1,3.6165]
[1724592402549,1.51820085,2765.3,2765.2,3.61637]
[1724592402969,1.51820085,2765.3,2764.9,3.61668]
[1724592402970,2.313,2765.3,2764.9,3.61668]
[1724592403174,2.313,2765.3,2764.9,3.61667]
[1724592403175,1.13731414,2765.0,2764.9,3.61667]
[1724592403888,1.13731414,2765.1,2765.0,3.61663]
[1724592404046,1.13731414,2765.1,2764.8,3.6168]
[1724592404251,1.13750715,2765.0,2764.8,3.6168]
[1724592405348,1.13750715,2765.0,2764.9,3.61676]
[1724592405582,1.51641886,2765.1,2764.9,3.61676]
[1724592405583,1.13750715,2765.1,2764.9,3.61676]
[1724592405782,1.13750715,2765.0,2764.9,3.61676]
[1724592406792,1.13750715,2765.1,2765.0,3.61663]
[1724592407916,1.13750715,2765.2,2765.1,3.6165]
[1724592408478,1.13750715,2765.2,2765.1,4.339813]
[1724592408683,1.51641886,2765.2,2764.4,3.09944546]
[1724592408881,1.13778345,2764.8,2764.4,2.4451]
[1724592409199,1.13778345,2764.6,2764.4,3.61731]
[1724592409398,1.13778345,2764.6,2764.3,3.61746]
[1724592409617,1.13778345,2764.5,2764.3,3.61746]
[1724592409828,1.13778345,2764.4,2764.3,3.61746]
[1724592410177,1.13778345,2764.5,2764.4,3.61742]
[1724592410625,1.13778345,2764.5,2764.3,3.61746]
[1724592410791,1.5170446,2764.6,2764.3,3.61746]
[1724592410792,1.13803081,2764.4,2764.3,3.61746]
[1724592412095,1.13803081,2764.4,2764.1,3.61773]
[1724592412277,1.13803081,2764.4,2764.3,3.61755]
[1724592412478,1.13803081,2764.5,2764.3,3.61755]
[1724592412681,1.5170446,2764.6,2764.3,3.61755]
[1724592412682,1.13803081,2764.4,2764.3,3.61755]
[1724592412978,1.13803081,2764.5,2764.2,3.61768]
[1724592413694,1.13803081,2764.4,2764.2,3.61768]
[1724592413898,1.13803081,2764.3,2764.2,3.61768]
[1724592414102,1.13803081,2764.4,2764.2,3.61768]
[1724592414303,1.13803081,2764.4,2764.2,4.6462883]
[1724592415536,1.13803081,2764.5,2764.3,3.61751]
[1724592415820,1.13803081,2764.5,2764.4,3.61742]
[1724592416133,1.5170446,2764.7,2764.4,3.61742]
[1724592416134,1.13803081,2764.6,2764.4,3.61742]
[1724592416991,1.13803081,2764.6,2764.3,3.61755]
[1724592417217,1.13803081,2764.5,2764.1,3.61773]
[1724592417419,1.13803081,2764.5,2763.4,3.61866]
[1724592417420,4.75573081,2764.2,2763.4,3.61866]
[1724592417728,1.13803081,2764.1,2763.6,3.61836]
[1724592417929,1.13803081,2763.9,2763.4,3.61869]
[1724592418126,1.13803081,2763.9,2763.5,3.61854]
[1724592418824,1.13803081,2763.9,2763.4,3.61869]
[1724592419127,7.4480546,2764.0,2763.4,3.61869]
[1724592419128,7.06904081,2764.0,2763.4,3.61865]
[1724592419331,3.45103081,2764.0,2763.6,3.61844]
[1724592419627,1.13803081,2764.0,2763.6,3.61836]
[1724592420637,1.13803081,2764.0,2763.4,3.61863]
[1724592421256,7.06911081,2763.9,2763.0,3.61919]
[1724592421463,7.06911081,2763.9,2763.3,3.61884]
[1724592421464,3.45103081,2763.9,2763.3,3.61884]
[1724592421672,3.45103081,2763.9,2763.3,3.61876]
[1724592421673,2.313,2763.9,2763.3,3.61876]
[1724592421963,3.45103081,2763.9,2763.3,3.61876]
[1724592422123,2.313,2763.9,2763.3,3.61876]
[1724592422324,5.9311,2763.9,2763.3,3.61876]
[1724592422565,5.9311,2763.9,2763.1,4.16907]
[1724592422566,3.61823,2763.8,2763.1,4.169]
[1724592422855,4.75626081,2763.8,2763.1,4.169]
[1724592423317,8.00146109,2763.9,2763.1,4.169]
[1724592423512,8.00146109,2763.9,2763.2,3.61897]
[1724592424122,4.41835611,2763.8,2763.1,4.169]
[1724592424328,4.41835611,2763.8,2763.2,3.61896]
[1724592424635,5.55638692,2763.8,2763.0,3.61916]
[1724592424850,6.10947,2763.6,2762.9,3.61933]
[1724592425051,6.10947,2763.6,2763.0,3.61924]
[1724592426025,2.491,2763.6,2763.1,3.61911]
[1724592426226,2.491,2763.6,2763.2,3.6189]
[1724592426528,1.5170446,2764.1,2764.0,3.61794]
[1724592426753,5.13884761,2764.8,2763.3,3.723801]
[1724592426754,1.13443554,2765.0,2764.3,3.61755]
[1724592426960,1.13443554,2765.0,2764.1,3.61776]
[1724592426961,3.6169,2764.8,2764.1,3.61776]
[1724592427144,6.58317355,2764.7,2764.1,3.61776]
[1724592427661,6.58317355,2764.7,2763.5,3.61848]
[1724592427662,3.61739,2764.5,2763.7,3.6183]
[1724592427881,2.491,2764.3,2763.8,3.6182]
[1724592428027,2.491,2764.3,2763.7,3.6183]
[1724592428831,2.491,2764.3,2763.6,0.55]
[1724592428832,6.10855,2764.3,2763.6,3.61846]
[1724592429278,6.10855,2764.3,2763.7,3.61833]
[1724592429279,2.491,2764.3,2763.7,3.61833]
[1724592429427,2.491,2764.3,2763.9,3.61797]
[1724592429981,1.13443554,2764.6,2763.3,3.723801]
[1724592429982,2.491,2764.6,2764.1,3.61772]
[1724592430264,2.491,2764.6,2764.2,3.61767]
[1724592430679,1.13443554,2764.8,2763.7,2.2992]
[1724592430981,1.19745305,2765.2,2764.7,3.6169]
[1724592431278,0.06301751,2765.2,2764.5,3.6172]
[1724592431483,4.81384305,2765.2,2764.5,3.6172]
[1724592432133,3.67940751,2765.2,2764.5,3.6172]
[1724592432333,3.67940751,2765.2,2764.6,3.61715]
[1724592432669,4.86020176,2765.2,2764.5,3.6172]
[1724592433077,5.9946373,2765.2,2764.5,3.6172]
[1724592433376,2.3782473,2765.2,2764.6,3.61706]
[1724592433585,3.62543554,2765.3,2764.7,3.61701]
[1724592434284,2.491,2765.3,2764.7,3.61701]
[1724592434435,3.62543554,2765.3,2764.7,3.61701]
[1724592434835,2.491,2765.3,2764.7,3.61701]
[1724592435274,7.24168554,2765.3,2764.7,3.61701]
[1724592436273,3.62543554,2765.3,2764.7,7.23393]
[1724592436461,3.62543554,2765.3,2764.7,3.61692]
[1724592436779,7.24168554,2765.3,2764.7,3.61692]
[1724592437365,3.61638,2765.2,2764.5,7.23444]
[1724592437677,3.61638,2765.2,2764.5,7.23438]
[1724592437888,0.72418155,2765.1,2764.5,7.23438]
[1724592438184,0.72418155,2765.1,2764.5,3.61719]
[1724592438397,6.1077,2765.0,2764.4,3.61736]
[1724592438850,2.491,2765.0,2764.5,3.61727]
[1724592439286,2.491,2765.0,2764.7,3.61701]
[1724592439689,2.491,2765.0,2764.6,3.61707]
[1724592439876,2.491,2765.0,2764.6,7.23414]
[1724592440273,5.1333646,2765.3,2764.6,3.61707]
[1724592440274,3.62543554,2765.3,2764.6,3.61707]
[1724592440508,1.13443554,2765.2,2764.6,7.23413]
[1724592440698,1.13443554,2765.2,2764.7,3.61701]
[1724592440888,9.05256575,2765.3,2764.7,3.61701]
[1724592441198,1.13443554,2765.2,2764.7,3.61701]
[1724592444492,1.13443554,2765.2,2764.5,3.61718]
[1724592444493,4.75081554,2765.2,2764.5,3.61718]
[1724592444815,1.13443554,2765.1,2764.5,3.61718]
[1724592445233,8.89872533,2765.2,2764.5,3.61718]
[1724592445362,5.28223533,2765.2,2764.6,3.61712]
[1724592446263,1.13443554,2765.1,2764.6,3.61712]
[1724592446464,5.28223533,2765.2,2764.6,3.61712]
[1724592447190,5.28223533,2765.2,2764.7,3.61699]
[1724592448120,1.13443554,2765.2,2764.7,7.23392]
[1724592448319,3.62543554,2765.3,2764.7,3.61693]
[1724592448477,3.62543554,2765.3,2764.3,2.2992]
[1724592448478,2.491,2765.3,2764.3,2.2992]
[1724592448682,1.13443554,2765.3,2764.9,2.3107]
[1724592448882,8.59443554,2765.5,2765.0,3.61655]
[1724592449448,10.21556224,2765.5,2764.9,3.61669]
[1724592449982,13.83157224,2765.5,2764.9,3.61669]
[1724592450431,8.59443554,2765.5,2765.0,3.61653]
[1724592451308,7.46,2765.5,2765.0,3.61653]
[1724592451507,8.59443554,2765.5,2765.0,3.61653]
[1724592451880,8.59443554,2765.5,2765.1,3.6164]
[1724592452120,8.59443554,2765.5,2765.0,3.61653]
[1724592452322,12.21042554,2765.5,2765.0,3.61653]
[1724592452990,8.59443554,2765.5,2765.0,3.61653]
[1724592454011,7.46,2765.5,2765.0,3.61653]
[1724592454218,1.13443554,2765.5,2765.0,3.61653]
[1724592455037,4.75043554,2765.5,2765.0,3.61653]
[1724592455339,5.98086355,2765.5,2765.0,3.61653]
[1724592455487,2.4209,2765.4,2765.0,3.61653]
[1724592455689,3.61624,2765.3,2764.8,3.6168]
[1724592457825,3.55533554,2765.4,2764.8,3.6168]
[1724592458189,2.4209,2765.4,2764.9,3.61674]
[1724592459701,2.4209,2765.4,2765.0,3.61662]
[1724592460436,2.4209,2765.4,2764.8,3.6168]
[1724592460728,7.17152554,2765.4,2764.8,3.6168]
[1724592460934,3.61624,2765.3,2764.8,3.6168]
[1724592461487,3.61624,2765.3,2764.7,3.61695]
[1724592462298,3.61624,2765.3,2764.8,3.61689]
[1724592462995,3.55533554,2765.4,2764.8,7.2337]
[1724592463197,2.4209,2765.4,2764.8,4.34018]
[1724592463495,2.4209,2765.4,2764.8,3.61681]
[1724592463719,2.4209,2765.4,2764.9,0.56570757]
[1724592463934,3.47223554,2765.6,2765.1,3.61647]
[1724592465037,7.08813554,2765.6,2764.9,3.61665]
[1724592465330,7.08813554,2765.6,2765.0,3.61655]
[1724592465568,1.13443554,2765.5,2765.0,3.61655]
[1724592466437,7.4707446,2765.6,2765.0,6.665742]
[1724592466438,3.47223554,2765.6,2765.0,6.665742]
[1724592466737,3.47223554,2765.6,2765.2,3.61629]
[1724592468533,1.13443554,2765.6,2765.2,3.61629]
[1724592468732,10.93223554,2765.8,2765.4,3.61609]
[1724592468935,3.47223554,2765.8,2765.4,3.61609]
[1724592469329,1.26667804,2766.0,2765.9,7.2309]
[1724592469529,0.1322425,2766.0,2765.9,9.5567]
[1724592469841,0.1322425,2766.0,2765.5,0.361609]
[1724592470230,0.1322425,2766.0,2765.9,3.61545]
[1724592470566,0.1322425,2766.0,2765.9,0.361545]
[1724592470904,0.1322425,2766.0,2765.6,5.94161]
[1724592471111,0.1322425,2766.0,2765.6,3.61581]
[1724592472021,1.26667804,2766.0,2765.5,0.361609]
[1724592472237,4.88205804,2766.0,2765.5,0.361609]
[1724592472437,1.13443554,2765.7,2765.2,7.23258]
[1724592472647,1.13443554,2765.7,2765.2,3.61629]
[1724592473151,1.13443554,2765.7,2765.0,4.339922]
[1724592473152,3.47223554,2765.6,2765.0,4.339922]
[1724592473350,3.47223554,2765.6,2765.0,4.339892]
[1724592473351,1.13443554,2765.5,2765.0,4.339892]
[1724592473654,1.13443554,2765.5,2765.0,3.61655]
[1724592473849,1.13443554,2765.4,2765.0,3.61655]
[1724592474057,1.13443554,2765.4,2765.1,3.61648]
[1724592474411,1.13443554,2765.4,2765.0,3.61655]
[1724592475438,1.13443554,2765.4,2765.1,3.61642]
[1724592475639,1.13443554,2765.4,2765.1,4.339717]
[1724592476165,1.13443554,2765.3,2765.1,4.339717]
[1724592476512,1.13443554,2765.3,2765.1,3.61642]
[1724592477536,1.13443554,2765.3,2765.2,3.61637]
[1724592477738,1.13443554,2765.4,2765.2,3.61637]
[1724592479975,1.13443554,2765.4,2765.1,3.61642]
[1724592479976,1.13443554,2765.4,2765.3,3.61624]
[1724592480537,1.13443554,2765.4,2765.3,7.23248]
[1724592480750,1.5170446,2765.6,2765.4,3.61611]
[1724592480751,1.13443554,2765.5,2765.4,3.61611]
[1724592481760,1.13443554,2765.7,2765.5,3.61598]
[1724592481963,1.13443554,2765.8,2765.7,3.61572]
[1724592482877,1.13443554,2765.8,2765.7,7.23144]
[1724592483207,8.72667804,2766.0,2765.8,3.61546]
[1724592483371,1.13443554,2765.9,2765.8,3.61546]
[1724592483552,8.72667804,2766.0,2765.8,3.61546]
[1724592483750,1.26667804,2766.0,2765.8,3.61546]
[1724592484773,1.26667804,2766.0,2765.8,7.23097]
[1724592485108,0.1322425,2766.0,2765.9,7.2309]
[1724592485875,0.1322425,2766.0,2765.9,7.7809]
[1724592486515,0.1322425,2766.0,2765.9,7.2309]
[1724592487210,0.1322425,2766.0,2765.9,3.61545]
[1724592487407,0.1322425,2766.0,2765.6,6.09467]
[1724592487573,0.1322425,2766.0,2765.8,3.61558]
[1724592487774,0.1322425,2766.0,2765.9,3.61545]
[1724592493501,2.5870425,2766.0,2765.9,3.61545]
[1724592493775,0.1322425,2766.0,2765.9,3.61545]
[1724592497374,0.1322425,2766.0,2765.8,3.61551]
[1724592497803,0.1322425,2766.0,2765.9,3.61545]
[1724592498614,0.1322425,2766.0,2765.9,4.338546]
[1724592499213,0.1322425,2766.0,2765.9,10.432896]
[1724592500590,0.1322425,2766.0,2765.9,7.953996]
[1724592501111,0.1322425,2766.0,2765.9,3.61545]
[1724592502675,0.1322425,2766.0,2765.9,7.2309]
[1724592504389,0.1322425,2766.0,2765.9,9.7302]
[1724592505511,0.1322425,2766.0,2765.9,13.89565]
[1724592505874,0.1322425,2766.0,2765.9,10.2802]
[1724592506071,0.1322425,2766.0,2765.9,11.30822]
[1724592506271,0.1322425,2766.0,2765.9,14.92367]
[1724592506475,0.1322425,2766.0,2765.9,11.30822]
[1724592507397,0.1322425,2766.0,2765.9,8.80892]
[1724592508711,0.1322425,2766.0,2765.9,8.25892]
[1724592510217,0.1322425,2766.0,2765.9,10.75822]
[1724592510514,0.1322425,2766.0,2765.9,11.30822]
[1724592511953,0.1322425,2766.0,2765.9,8.80892]
[1724592517165,0.1322425,2766.0,2765.9,1.02802]
[1724592517394,0.1322425,2766.0,2765.8,3.61551]
[1724592518083,0.1322425,2766.0,2765.9,3.61545]
[1724592518705,0.1322425,2766.0,2765.9,7.2309]
[1724592519317,0.1322425,2766.0,2765.9,7.7809]
[1724592522595,0.1322425,2766.0,2765.9,4.16545]
[1724592522753,0.1322425,2766.0,2765.9,3.61545]
[1724592523297,1.26820043,2766.0,2765.9,3.61545]
[1724592523694,0.1322425,2766.0,2765.9,3.61545]
[1724592524269,0.1322425,2766.0,2765.9,4.39511406]
[1724592525400,1.26820043,2766.0,2765.9,4.39511406]
[1724592525774,0.1322425,2766.0,2765.9,8.01056406]
[1724592526116,0.1322425,2766.0,2765.9,8.56056406]
[1724592526923,0.1322425,2766.0,2765.9,12.17601406]
[1724592527097,0.1322425,2766.0,2765.9,8.56056406]
[1724592527293,0.1322425,2766.0,2765.9,12.17601406]
[1724592528029,0.1322425,2766.0,2765.9,14.79265906]
[1724592528251,0.1322425,2766.0,2765.9,17.79265906]
[1724592528579,2.5e-06,2766.0,2765.9,24.10100506]
[1724592528784,2.5e-06,2766.0,2765.9,17.79265906]
[1724592529221,2.5e-06,2766.0,2765.9,20.07358006]
[1724592529785,2.5e-06,2766.0,2765.9,17.79265906]
[1724592530021,2.5e-06,2766.0,2765.9,8.34750906]
[1724592530319,2.5e-06,2766.0,2765.9,7.2309]
[1724592530860,2.5e-06,2766.0,2765.9,13.46302382]
[1724592531052,2.5e-06,2766.0,2765.9,7.2309]
[1724592533494,2.5e-06,2766.0,2765.9,10.84635]
[1724592534163,2.5e-06,2766.0,2765.9,11.73327433]
[1724592534363,2.5e-06,2766.0,2765.9,13.32208024]
[1724592535064,2.5e-06,2766.0,2765.9,13.32205562]
[1724592535265,2.5e-06,2766.0,2765.9,15.69135562]
[1724592535479,2.5e-06,2766.0,2765.9,26.15897262]
[1724592535665,2.5e-06,2766.0,2765.9,24.65064462]
[1724592535994,2.5e-06,2766.0,2765.9,28.8050803]
[1724592536295,2.5e-06,2766.0,2765.9,25.1896303]
[1724592536480,2.5e-06,2766.0,2765.9,28.8050803]
[1724592537991,2.5e-06,2766.0,2765.9,25.1896303]
[1724592538307,2.5e-06,2766.0,2765.9,29.29886973]
[1724592538677,2.5e-06,2766.0,2765.9,28.42298434]
[1724592538869,2.5e-06,2766.0,2765.9,29.29872313]
[1724592542308,2.5e-06,2766.0,2765.9,29.29855766]
[1724592542492,2.5e-06,2766.0,2765.9,32.91400766]
[1724592542682,2.5e-06,2766.0,2765.9,33.66622052]
[1724592542888,2.5e-06,2766.0,2765.9,30.05077052]
[1724592543212,2.5e-06,2766.0,2765.9,33.66622052]
[1724592543711,2.5e-06,2766.0,2765.9,32.91400766]
[1724592543915,2.5e-06,2766.0,2765.9,33.66622052]
[1724592544473,2.5e-06,2766.0,2765.9,33.66521275]
[1724592544982,2.5e-06,2766.0,2765.9,37.66521275]
[1724592545182,2.5e-06,2766.0,2765.9,34.04976275]
[1724592545393,2.5e-06,2766.0,2765.9,32.74855766]
[1724592546517,2.5e-06,2766.0,2765.9,36.36400766]
[1724592546718,2.5e-06,2766.0,2765.9,36.91400766]
[1724592546924,2.5e-06,2766.0,2765.9,37.66521275]
[1724592547497,2.5e-06,2766.0,2765.9,37.31283774]
[1724592547723,2.5e-06,2766.0,2765.9,41.70397043]
[1724592547898,2.5e-06,2766.0,2765.9,76.70397043]
[1724592548308,2.2534,2767.6,2765.9,76.70397043]
[1724592548309,2.2534,2767.6,2767.5,3.61336]
[1724592548516,2.2534,2767.6,2767.4,3.61341]
[1724592548696,2.2534,2767.6,2767.5,3.61336]
[1724592550536,2.2534,2767.6,2766.8,3.0]
[1724592550537,2.2534,2767.6,2767.3,3.61351]
[1724592550861,2.2534,2767.6,2767.0,3.61399]
[1724592550862,2.2534,2767.5,2767.0,3.61399]
[1724592551004,1.9034,2767.5,2767.0,3.61399]
[1724592551204,4.97458793,2767.6,2766.8,3.61423]
[1724592551205,3.61352,2767.4,2766.8,3.61423]
[1724592551391,1.13595793,2767.5,2766.8,7.22843]
[1724592551597,0.64891985,2767.4,2766.9,3.61404]
[1724592551803,0.64891985,2767.4,2767.0,3.61401]
[1724592552095,7.93e-06,2768.3,2768.2,3.61245]
[1724592552327,0.1322425,2768.8,2767.7,0.49378943]
[1724592552605,0.1322425,2768.8,2768.7,10.8354]
[1724592552815,0.1322425,2768.8,2768.7,7.2236]
[1724592552816,0.0822425,2768.8,2768.7,7.2236]
[1724592552992,0.0822425,2768.8,2768.7,3.6118]
[1724592554433,0.0822425,2768.8,2768.6,3.61181]
[1724592554603,0.31580675,2768.8,2768.4,3.61216]
[1724592554806,0.31580675,2768.8,2768.5,3.61203]
[1724592555416,0.31580675,2768.8,2768.4,3.61216]
[1724592555619,0.31580675,2768.8,2768.2,3.61242]
[1724592555620,0.31580675,2768.8,2768.2,3.61243]
[1724592555836,0.25692068,2768.7,2768.2,3.61243]
[1724592556060,0.25692068,2768.7,2768.3,3.61232]
[1724592556585,0.25692068,2768.7,2768.3,3.61229]
[1724592556721,0.0822425,2768.8,2768.4,3.61209]
[1724592557379,0.0822425,2768.8,2768.1,3.0]
[1724592557589,0.0822425,2768.8,2768.7,7.2236]
[1724592557877,0.0822425,2768.8,2768.7,7.7736]
[1724592558081,0.0822425,2768.8,2768.7,11.3854]
[1724592558222,0.0822425,2768.8,2768.7,12.52394]
[1724592558426,0.0822425,2768.8,2768.7,15.52394]
[1724592559186,0.0822425,2768.8,2768.7,18.01794]
[1724592560795,2.5e-06,2768.8,2768.7,37.90837]
[1724592561287,2.5e-06,2768.8,2768.7,34.29657]
[1724592561645,2.5e-06,2768.8,2768.7,37.90837]
[1724592562688,2.3922,2771.1,2770.2,3.60976]
[1724592562900,2.3922,2771.1,2768.7,21.4017119]
[1724592562901,2.3922,2770.5,2770.0,3.61008]
[1724592563042,2.3922,2770.5,2769.6,3.61061]
[1724592563248,2.3922,2770.5,2769.7,4.16049]
[1724592563470,3.60936,2770.6,2769.7,4.16049]
[1724592563471,2.3922,2770.3,2769.8,3.6103]
[1724592563670,2.3922,2770.3,2769.7,0.55]
[1724592563671,0.60019,2770.2,2769.7,0.55]
[1724592564184,3.61078,2769.5,2768.7,4.0]
[1724592564480,3.61078,2769.5,2768.4,2.3632]
[1724592564481,3.61116,2769.2,2768.5,3.61194]
[1724592564648,3.61104,2769.3,2768.6,3.61193]
[1724592564850,0.60019,2770.2,2768.3,3.61223]
[1724592564851,3.6114,2769.1,2768.3,3.61223]
[1724592565049,0.60036,2769.0,2768.2,3.61244]
[1724592565580,0.60036,2769.0,2768.6,3.61181]
[1724592565889,2.3922,2769.2,2768.6,3.61181]
[1724592566458,2.3922,2769.2,2768.7,3.61179]
[1724592567489,2.3922,2769.2,2768.9,3.61144]
[1724592568083,2.3922,2769.2,2768.7,3.61179]
[1724592568782,2.3922,2769.2,2768.8,3.61166]
[1724592569503,2.3922,2769.2,2768.7,3.61179]
[1724592569792,2.3922,2769.2,2768.7,3.61171]
[1724592569991,2.63142,2769.2,2768.7,3.61171]
[1724592570694,2.3922,2769.0,2768.4,3.61209]
[1724592570854,2.3922,2769.0,2768.5,3.61205]
[1724592571250,2.3922,2769.0,2768.7,3.61168]
[1724592571655,2.3922,2769.0,2768.5,3.61205]
[1724592571911,2.655342,2769.0,2768.6,3.61193]
[1724592572515,2.3922,2769.0,2768.6,3.61193]
[1724592573559,2.3922,2769.0,2768.5,3.61205]
[1724592574073,6.00362,2769.0,2768.4,3.61214]
[1724592574275,6.00362,2769.0,2768.3,3.6123]
[1724592574496,6.00362,2769.0,2768.4,3.61219]
[1724592574695,0.600362,2768.9,2768.4,3.61219]
[1724592574894,0.600362,2768.9,2768.2,3.61237]
[1724592575105,0.600362,2768.9,2768.3,4.16232]
[1724592575106,4.211902,2768.9,2768.3,4.16232]
[1724592575265,2.3922,2768.8,2768.3,4.16232]
[1724592575801,2.3922,2768.8,2768.3,3.61232]
[1724592576005,3.0526102,2768.8,2768.4,3.61218]
[1724592576317,2.3922,2768.8,2768.4,3.61218]
[1724592577009,2.3922,2768.8,2768.3,3.61232]
[1724592577913,2.3922,2768.8,2768.4,3.61217]
[1724592578329,0.600362,2768.9,2768.4,3.61217]
[1724592578602,0.600362,2768.9,2768.3,3.61224]
[1724592578603,0.600362,2768.9,2768.5,3.61204]
[1724592578807,0.600362,2768.9,2768.4,3.61219]
[1724592579304,2.8133792,2768.8,2768.3,3.61224]
[1724592579771,6.4250792,2768.8,2768.2,3.61242]
[1724592580200,2.8133792,2768.8,2768.3,3.6123]
[1724592580917,2.8133792,2768.8,2768.2,3.61244]
[1724592582389,2.8133792,2768.8,2768.3,3.61231]
[1724592582605,0.64249392,2768.7,2768.3,3.61231]
[1724592583396,0.64249392,2768.7,2768.2,3.61243]
[1724592583397,2.338,2768.6,2768.2,3.61243]
[1724592583592,5.95007,2768.5,2767.8,3.61289]
[1724592583821,5.95007,2768.5,2767.7,3.61299]
[1724592583822,2.338,2768.5,2767.7,3.61299]
[1724592584119,2.338,2768.3,2767.7,3.61299]
[1724592584321,9.56276,2768.3,2767.7,3.61299]
[1724592584478,3.61247,2768.2,2767.6,3.61322]
[1724592584807,2.338,2768.2,2767.5,3.61326]
[1724592585695,2.338,2768.0,2767.5,3.61326]
[1724592586217,5.95074,2768.0,2767.3,3.61353]
[1724592586554,2.338,2767.8,2767.3,3.61353]
[1724592587332,2.338,2767.8,2767.1,3.6138]
[1724592587333,5.951,2767.8,2767.1,3.6138]
[1724592587698,3.61288,2767.9,2767.0,3.61399]
[1724592587699,5.95112,2767.7,2767.0,3.61399]
[1724592588044,5.95112,2767.7,2766.9,3.61413]
[1724592588045,5.95124,2767.6,2766.9,3.61413]
[1724592588995,5.95124,2767.6,2766.9,7.22818]
[1724592589188,5.95124,2767.6,2766.9,3.61405]
[1724592589429,6.3210268,2767.6,2766.9,3.61405]
[1724592589603,2.338,2767.4,2766.9,3.61405]
[1724592589827,2.338,2767.4,2766.8,3.61427]
[1724592590747,5.95158,2767.4,2766.6,3.61447]
[1724592590959,2.338,2767.2,2766.6,3.61447]
[1724592591162,2.338,2767.2,2766.5,3.61462]
[1724592591163,2.338,2767.2,2766.7,3.61439]
[1724592591366,2.338,2767.2,2766.8,3.61419]
[1724592591568,1.88268234,2768.1,2766.8,3.61419]
[1724592591569,1.88268234,2768.3,2767.3,2.4401]
[1724592591728,2.338,2768.6,2767.8,3.61297]
[1724592591931,0.06292345,2768.9,2768.4,3.61212]
[1724592591932,2.40092345,2768.9,2768.4,3.61212]
[1724592592237,2.40092345,2768.9,2768.2,3.61236]
[1724592592424,2.40092345,2768.9,2768.2,3.61235]
[1724592592623,3.0021568,2768.9,2768.3,3.61231]
[1724592593047,3.0021568,2768.9,2768.4,3.61217]